bitfinex-derivatives/quotes_ETHF0:USTF0_20210705
["timestamp","ask_amount","ask_price","bid_price","bid_amount"]
[1625477901149,2.20527,2274.9,2274.8,4.41054]
[1625477901248,3.20527,2274.9,2274.8,4.41054]
[1625477902248,51.52567,2274.9,2274.8,4.41054]
[1625477904305,52.80272903,2274.9,2274.8,4.41054]
[1625477905302,4.48232903,2274.9,2274.8,4.41054]
[1625477905651,3.20527,2274.9,2274.8,4.41054]
[1625477907002,2.20527,2274.9,2274.8,4.41054]
[1625477907364,3.48258822,2275.0,2274.8,4.41054]
[1625477907462,2.20527,2275.0,2274.8,4.41054]
[1625477909113,2.20527,2275.3,2274.8,4.41054]
[1625477909212,1.0,2275.2,2274.8,4.41054]
[1625477910718,1.27768441,2275.1,2274.8,4.41054]
[1625477910816,1.0,2275.0,2274.8,4.41054]
[1625477911117,2.20527,2274.9,2274.8,4.41054]
[1625477911225,3.20527,2274.9,2274.8,4.41054]
[1625477916744,4.48282476,2274.9,2274.8,4.41054]
[1625477917660,3.20527,2274.9,2274.8,4.41054]
[1625477917840,3.20527,2274.9,2274.8,2.20527]
[1625477917942,3.20527,2274.9,2273.9,14.4725]
[1625477918242,1.27686829,2274.7,2273.9,14.4725]
[1625477918341,1.0,2274.6,2273.9,14.4725]
[1625477918597,1.0,2274.6,2273.2,14.9733]
[1625477919194,2.20527,2274.2,2274.1,2.20527]
[1625477919946,1.0,2274.6,2274.1,2.20527]
[1625477920246,1.27725336,2274.9,2274.1,2.20527]
[1625477920346,1.0,2274.8,2274.1,2.20527]
[1625477921198,3.20527,2274.8,2274.7,2.20527]
[1625477923213,5.41054,2274.8,2274.7,2.20527]
[1625477923515,1.27794947,2275.1,2274.7,2.20527]
[1625477923614,1.27794947,2275.1,2274.7,5.14887]
[1625477923819,1.27847402,2275.3,2274.7,5.14887]
[1625477923919,44.17697402,2275.3,2274.7,5.14887]
[1625477924266,42.8985,2275.3,2274.7,5.14887]
[1625477925217,45.10377,2275.3,2275.2,3.41054]
[1625477925324,2.20527,2275.3,2275.2,3.41054]
[1625477925517,2.20527,2275.3,2275.2,4.41054]
[1625477926420,2.20527,2275.3,2275.2,3.41054]
[1625477926719,2.20527,2275.3,2275.2,4.41054]
[1625477927323,2.20527,2275.3,2275.2,3.41054]
[1625477928428,2.20527,2275.3,2275.2,4.41054]
[1625477936169,2.20527,2275.3,2275.2,3.41054]
[1625477936368,2.20527,2275.3,2275.2,4.41054]
[1625477954229,2.20527,2275.3,2275.2,3.41054]
[1625477955731,56.68967,2275.3,2275.2,3.41054]
[1625477956287,57.96932828,2275.3,2275.2,3.41054]
[1625477956697,55.76405828,2275.3,2274.6,1.0]
[1625477956997,1.27965828,2275.3,2274.6,1.0]
[1625477957405,1.27965828,2275.3,2275.2,2.20527]
[1625477957956,3.4856076,2275.4,2275.2,2.20527]
[1625477959359,5.6908776,2275.4,2275.2,2.20527]
[1625477959460,4.41054,2275.4,2275.2,2.20527]
[1625477961964,5.69109532,2275.4,2275.2,2.20527]
[1625477963133,5.69109532,2275.4,2275.1,2.20527]
[1625477963217,4.52045532,2275.4,2275.1,1.0]
[1625477963421,4.52045532,2275.4,2274.0,1.29721009]
[1625477963716,6.72572532,2275.4,2275.3,2.20527]
[1625477964470,5.44517,2275.4,2275.3,2.20527]
[1625477965723,7.65044,2275.4,2275.3,2.20527]
[1625477967327,8.95416372,2275.4,2275.3,2.20527]
[1625477968383,4.54362372,2275.4,2275.2,1.0]
[1625477968789,3.2399,2275.4,2275.2,1.0]
[1625477968884,2.56338722,2275.5,2273.4,7.05485721]
[1625477968993,1.28194381,2275.3,2274.2,1.0]
[1625477969635,1.28194381,2275.3,2274.3,16.081892]
[1625477969743,1.28194381,2275.3,2274.4,1.0]
[1625477969846,1.28194381,2275.3,2275.2,2.20527]
[1625477970352,2.58566961,2275.3,2275.2,2.20527]
[1625477971257,2.58566961,2275.3,2275.2,3.20527]
[1625477971355,2.58566961,2275.3,2275.2,2.20527]
[1625477972809,3.8675079,2275.3,2275.2,2.20527]
[1625477973009,3.8675079,2275.3,2275.2,3.20527]
[1625477973311,2.58562485,2275.3,2275.2,3.20527]
[1625477973510,2.58562485,2275.3,2275.2,2.20527]
[1625477973760,3.86744995,2275.3,2275.2,3.20527]
[1625477974209,2.58562556,2275.3,2275.2,3.20527]
[1625477978924,2.58562556,2275.3,2275.2,5.93827]
[1625477979827,1.28189976,2275.3,2275.2,5.93827]
[1625477980180,2.58561151,2275.3,2275.2,5.93827]
[1625477980579,1.28189976,2275.3,2275.2,5.93827]
[1625477981786,1.28218739,2275.6,2275.2,5.93827]
[1625477981880,1.28218739,2275.6,2275.5,2.20527]
[1625477981983,1.28218739,2275.6,2275.5,3.20527]
[1625477982486,1.28218739,2275.6,2275.5,56.75837]
[1625477982582,1.28299915,2275.9,2275.5,56.75837]
[1625477983283,1.28299915,2275.9,2275.5,3.20527]
[1625477983591,3.48804721,2276.1,2275.5,3.20527]
[1625477983783,3.48804721,2276.1,2275.5,52.34297]
[1625477983887,1.28277721,2276.1,2276.0,4.41054]
[1625477983985,1.28277721,2276.1,2276.0,5.41054]
[1625477984187,3.07907704,2276.1,2276.0,5.41054]
[1625477985093,1.28277721,2276.1,2276.0,5.41054]
[1625477986147,3.07825551,2276.2,2276.0,5.41054]
[1625477986350,3.07825551,2276.2,2276.1,43.0938]
[1625477986451,3.07825551,2276.2,2276.1,44.0938]
[1625477986551,1.28248318,2276.2,2276.1,1.0]
[1625477990010,1.28169596,2276.3,2276.1,1.0]
[1625477993365,3.48649123,2276.4,2276.1,55.9696]
[1625477993615,3.48649123,2276.4,2276.1,1.0]
[1625477994018,3.48649123,2276.4,2276.3,2.20527]
[1625477994119,3.48649123,2276.4,2276.3,4.79677]
[1625477994819,2.20527,2276.4,2276.3,4.79677]
[1625477995170,3.48656876,2276.4,2276.3,4.79677]
[1625477995267,3.48656876,2276.4,2276.3,5.79677]
[1625477995620,2.20527,2276.4,2276.3,5.79677]
[1625477997682,1.28157347,2276.6,2276.3,3.5915]
[1625477998831,1.28157347,2276.6,2276.5,4.41054]
[1625477998931,3.48579107,2276.7,2276.5,5.41054]
[1625477999383,2.20527,2276.7,2276.5,5.41054]
[1625477999984,2.20527,2276.7,2276.5,56.41054]
[1625478000185,2.20527,2276.7,2276.5,5.41054]
[1625478006263,2.20527,2276.7,2276.6,54.751]
[1625478006464,1.27994762,2276.9,2276.6,54.751]
[1625478007014,3.48521762,2276.9,2276.8,4.41054]
[1625478009525,3.48521762,2276.9,2276.8,2.20527]
[1625478009625,4.37641762,2276.9,2276.3,1.0]
[1625478009728,7.09661762,2276.9,2274.9,69.49979439]
[1625478010227,1.27893182,2276.8,2275.0,1.295158]
[1625478010328,1.27893182,2276.8,2275.5,15.8823]
[1625478010427,1.27893182,2276.8,2275.5,18.3721]
[1625478010629,1.27919001,2276.7,2275.5,18.3721]
[1625478010728,1.27919001,2276.7,2275.6,1.0]
[1625478010877,1.2782647,2276.8,2275.6,1.0]
[1625478010977,1.2782647,2276.8,2276.4,2.20527]
[1625478011882,1.27807834,2276.7,2276.4,2.20527]
[1625478012133,1.27807834,2276.7,2276.4,49.72117]
[1625478012283,1.27807834,2276.7,2276.4,2.20527]
[1625478013090,2.20527,2276.5,2276.4,2.20527]
[1625478017359,2.20527,2276.5,2276.4,55.98207]
[1625478017862,2.20527,2276.5,2276.4,2.20527]
[1625478022725,2.20527,2276.5,2276.4,3.20527]
[1625478023975,2.20527,2276.5,2276.4,49.76167]
[1625478025128,2.20527,2276.5,2276.4,3.20527]
[1625478026330,2.20527,2276.5,2276.4,45.16207]
[1625478027032,2.20527,2276.5,2276.4,3.20527]
[1625478028435,2.20527,2276.5,2276.4,45.44497]
[1625478028686,2.20527,2276.5,2276.4,3.20527]
[1625478031140,2.20527,2276.5,2276.4,48.45877]
[1625478031590,2.20527,2276.5,2276.4,51.99967]
[1625478032091,1.27775232,2276.9,2276.4,49.7944]
[1625478032503,1.27864438,2277.0,2276.4,49.7944]
[1625478032952,1.27873116,2277.1,2276.4,4.5409]
[1625478033304,1.27873116,2277.1,2277.0,2.20527]
[1625478034151,3.99549362,2277.2,2277.0,2.20527]
[1625478034152,3.48414249,2277.2,2277.0,2.20527]
[1625478034755,1.27876114,2277.1,2277.0,2.20527]
[1625478035419,3.48403114,2277.1,2277.0,2.20527]
[1625478037411,2.20527,2277.1,2277.0,2.20527]
[1625478038175,3.99576927,2277.1,2277.0,2.20527]
[1625478038273,3.99576927,2277.1,2277.0,1.52887]
[1625478039478,3.99576927,2277.1,2276.7,2.20527]
[1625478039576,3.48415823,2277.1,2276.7,2.20527]
[1625478040682,3.48415823,2277.1,2276.8,1.0]
[1625478041480,2.20527,2276.9,2276.8,1.0]
[1625478042640,2.20527,2276.9,2276.7,2.20527]
[1625478043141,2.20527,2276.9,2276.7,3.20527]
[1625478043342,2.20527,2276.9,2276.7,2.20527]
[1625478043897,2.20527,2276.9,2276.7,3.20527]
[1625478045244,2.20527,2276.9,2276.7,2.20527]
[1625478050424,54.05257,2276.9,2276.7,2.20527]
[1625478050525,2.20527,2276.9,2276.7,2.20527]
[1625478055735,3.48522257,2276.9,2276.7,2.20527]
[1625478056238,3.48522257,2276.9,2276.8,1.0]
[1625478056488,2.20527,2276.9,2276.8,1.0]
[1625478060103,3.48614787,2276.9,2276.8,1.0]
[1625478064018,3.48614787,2276.9,2276.8,51.6613]
[1625478064118,3.48614787,2276.9,2276.8,1.0]
[1625478064921,4.00042886,2276.9,2276.8,1.0]
[1625478065471,3.48765559,2276.9,2276.8,1.0]
[1625478065824,2.20527,2276.9,2276.8,1.0]
[1625478066123,3.48790277,2276.9,2276.8,1.0]
[1625478067435,2.20527,2276.9,2276.8,1.0]
[1625478068487,5.28850457,2276.9,2276.8,1.0]
[1625478068590,5.28850457,2276.9,2276.7,2.20527]
[1625478068938,7.85762414,2276.9,2276.7,2.20527]
[1625478069036,46.302,2276.8,2276.7,2.20527]
[1625478069137,49.5949,2276.8,2276.7,2.20527]
[1625478069239,52.67666774,2276.8,2276.7,2.20527]
[1625478069589,55.24467865,2276.8,2276.7,2.20527]
[1625478069692,8.94267865,2276.8,2276.7,2.20527]
[1625478070190,6.37466774,2276.8,2276.7,2.20527]
[1625478070491,7.67745715,2276.8,2276.7,2.20527]
[1625478070590,8.55435715,2276.8,2276.7,2.20527]
[1625478070741,11.12250464,2276.8,2276.7,2.20527]
[1625478070842,11.12250464,2276.8,2276.5,1.0]
[1625478070941,42.9576,2276.6,2276.5,1.0]
[1625478071041,11.12250464,2276.8,2276.5,1.0]
[1625478071242,1.3028042,2276.7,2276.5,1.0]
[1625478071443,1.3028042,2276.7,2275.8,1.29956103]
[1625478071542,1.3028042,2276.7,2275.9,1.0]
[1625478071743,6.9558061,2276.7,2276.6,2.20527]
[1625478072143,1.3028042,2276.7,2276.6,2.20527]
[1625478072242,1.3028042,2276.7,2275.9,1.0]
[1625478072643,40.2977,2276.2,2275.9,1.0]
[1625478072745,1.3028042,2276.7,2275.9,1.0]
[1625478072843,2.7429,2276.2,2275.9,1.0]
[1625478073746,4.94817,2276.2,2276.1,2.20527]
[1625478073846,4.94817,2276.2,2276.1,3.20527]
[1625478075204,4.94817,2276.2,2276.1,2.20527]
[1625478075762,7.15344,2276.2,2276.1,2.20527]
[1625478076364,7.15344,2276.2,2276.1,48.00647]
[1625478076668,7.15344,2276.2,2276.1,49.00647]
[1625478076766,7.15344,2276.2,2276.1,3.20527]
[1625478083246,2.7429,2276.2,2276.1,1.0]
[1625478083346,5.66070238,2276.6,2276.1,1.0]
[1625478083848,4.41054,2276.2,2276.1,3.20527]
[1625478084349,2.20527,2276.2,2276.1,3.20527]
[1625478084551,5.66070238,2276.6,2276.1,54.25577]
[1625478084650,5.66070238,2276.6,2276.1,56.64747]
[1625478084851,5.66070238,2276.6,2276.1,72.57101]
[1625478084958,1.3028564,2276.5,2276.1,72.57101]
[1625478085416,1.3028495,2276.6,2276.1,72.57101]
[1625478085512,1.3028495,2276.6,2276.1,21.52051]
[1625478085869,1.3028495,2276.6,2276.5,2.20527]
[1625478087370,1.3028495,2276.6,2276.5,3.20527]
[1625478087722,1.3028495,2276.6,2276.5,56.23487]
[1625478087825,1.3028495,2276.6,2276.5,3.20527]
[1625478088234,1.3028495,2276.6,2276.5,2.20527]
[1625478090593,1.3028495,2276.6,2276.5,3.20527]
[1625478094298,1.3028495,2276.6,2276.5,2.20527]
[1625478094699,39.6370495,2276.6,2276.5,2.20527]
[1625478095005,1.3028495,2276.6,2276.5,2.20527]
[1625478095154,6.96448192,2276.6,2276.5,2.20527]
[1625478096870,47.32078192,2276.6,2276.5,2.20527]
[1625478096969,6.96448192,2276.6,2276.5,2.20527]
[1625478097570,6.96448192,2276.6,2276.1,3.20527]
[1625478097822,1.30288046,2276.5,2276.1,3.20527]
[1625478098022,2.20527,2276.2,2276.1,5.41054]
[1625478098121,4.89027,2276.2,2276.1,5.41054]
[1625478107028,4.89027,2276.2,2276.1,45.81484]
[1625478107127,2.20527,2276.2,2276.1,45.81484]
[1625478108234,2.20527,2276.2,2276.1,61.675924]
[1625478108382,2.20527,2276.2,2276.1,21.271624]
[1625478108933,2.20527,2276.2,2276.1,75.221324]
[1625478109033,2.20527,2276.2,2276.1,21.271624]
[1625478110135,2.20527,2276.2,2276.1,67.325924]
[1625478110936,2.20527,2276.2,2276.1,21.271624]
[1625478111443,2.20527,2276.2,2276.1,60.795224]
[1625478112547,2.20527,2276.2,2276.1,21.271624]
[1625478113598,2.20527,2276.2,2276.1,70.300724]
[1625478113698,2.20527,2276.2,2276.1,21.271624]
[1625478114952,2.20527,2276.2,2276.1,64.010524]
[1625478116056,2.20527,2276.2,2276.1,21.271624]
[1625478116557,44.19047,2276.2,2276.1,21.271624]
[1625478116758,2.20527,2276.2,2276.1,21.271624]
[1625478116857,2.20527,2276.2,2276.1,20.271624]
[1625478116957,2.20527,2276.2,2276.1,21.271624]
[1625478117210,2.20527,2276.2,2276.1,20.271624]
[1625478117307,40.00737,2276.2,2276.1,20.271624]
[1625478117408,2.20527,2276.2,2276.1,20.271624]
[1625478117709,2.20527,2276.2,2276.1,4.41054]
[1625478117809,5.72897,2276.2,2276.1,4.41054]
[1625478118111,7.03185662,2276.2,2276.1,4.41054]
[1625478118421,57.93915662,2276.2,2276.1,4.41054]
[1625478118520,7.03185662,2276.2,2276.1,4.41054]
[1625478122988,7.03185662,2276.2,2276.1,44.52614]
[1625478123089,7.03185662,2276.2,2276.1,4.41054]
[1625478123540,50.63435662,2276.2,2276.1,4.41054]
[1625478123638,7.03185662,2276.2,2276.1,4.41054]
[1625478125749,44.21225662,2276.2,2276.1,4.41054]
[1625478125853,7.03185662,2276.2,2276.1,4.41054]
[1625478127501,7.03185662,2276.2,2275.9,1.0]
[1625478127604,7.03185662,2276.2,2275.7,1.30165329]
[1625478127702,12.68333369,2276.2,2275.6,1.0]
[1625478127901,1.30315539,2276.1,2275.6,1.0]
[1625478128152,2.20527,2275.7,2275.6,3.20527]
[1625478128252,4.78887,2275.7,2275.6,3.20527]
[1625478128455,43.89717,2275.7,2275.6,3.20527]
[1625478128554,4.78887,2275.7,2275.6,3.20527]
[1625478130859,55.43297,2275.7,2275.6,3.20527]
[1625478131810,4.78887,2275.7,2275.6,3.20527]
[1625478135426,50.29737,2275.7,2275.6,3.20527]
[1625478135776,4.78887,2275.7,2275.6,3.20527]
[1625478135933,4.78887,2275.7,2275.6,2.20527]
[1625478136332,4.78887,2275.7,2275.6,3.20527]
[1625478136981,2.20527,2275.7,2275.6,3.20527]
[1625478137180,2.20527,2275.7,2275.6,19.209276]
[1625478137279,2.20527,2275.7,2275.6,61.905676]
[1625478137482,2.20527,2276.2,2275.6,61.905676]
[1625478137781,2.20527,2276.2,2276.1,42.6964]
[1625478137884,2.20527,2276.2,2275.6,61.905676]
[1625478137995,2.20527,2276.2,2275.6,19.209276]
[1625478138202,2.20527,2276.2,2275.6,3.20527]
[1625478138286,2.20527,2275.7,2275.6,3.20527]
[1625478138397,5.39757,2275.7,2275.6,3.20527]
[1625478138632,47.67007,2275.7,2275.6,3.20527]
[1625478138933,47.67007,2275.7,2275.6,1.0]
[1625478139185,47.67007,2275.7,2275.4,2.20527]
[1625478140288,49.87534,2275.7,2275.4,2.20527]
[1625478141189,49.87534,2275.7,2275.4,3.20527]
[1625478142895,7.60284,2275.7,2275.4,3.20527]
[1625478144042,42.1368,2275.5,2275.4,3.20527]
[1625478144998,54.46114,2275.7,2275.4,3.20527]
[1625478146599,7.60284,2275.7,2275.4,3.20527]
[1625478147551,47.4437,2275.5,2275.4,3.20527]
[1625478147653,7.60284,2275.7,2275.4,3.20527]
[1625478148759,5.39757,2275.7,2275.4,3.20527]
[1625478150415,5.39757,2275.7,2275.6,2.20527]
[1625478150714,5.39757,2275.7,2275.6,3.20527]
[1625478155175,50.94817,2275.7,2275.6,3.20527]
[1625478155277,5.39757,2275.7,2275.6,3.20527]
[1625478156180,3.1923,2275.7,2275.6,1.0]
[1625478156281,5.63810113,2276.1,2275.4,1.0]
[1625478156379,3.2733,2275.7,2275.4,1.0]
[1625478156784,3.2733,2275.7,2275.6,2.20527]
[1625478157636,44.4834,2275.7,2275.6,2.20527]
[1625478158842,5.47857,2275.7,2275.6,2.20527]
[1625478159041,5.47857,2275.7,2275.6,1.67177]
[1625478159139,5.47857,2275.7,2275.2,2.20527]
[1625478160239,5.47857,2275.7,2275.2,3.20527]
[1625478160640,44.33297,2275.7,2275.2,3.20527]
[1625478160741,44.33297,2275.7,2275.5,2.20527]
[1625478162799,2.20527,2275.6,2275.5,2.20527]
[1625478164575,54.68967,2275.6,2275.5,2.20527]
[1625478165570,52.4844,2275.6,2275.2,1.0]
[1625478165670,52.4844,2275.6,2275.0,1.0]
[1625478166772,2.20527,2275.4,2275.3,2.20527]
[1625478166873,3.08047,2275.4,2275.3,2.20527]
[1625478167073,2.20527,2275.4,2275.3,2.20527]
[1625478168825,4.41054,2275.4,2275.3,2.20527]
[1625478173099,4.41054,2275.4,2275.3,3.20527]
[1625478177858,7.80174,2275.4,2275.3,3.20527]
[1625478182578,8.68574,2275.4,2275.3,3.20527]
[1625478182680,7.80174,2275.4,2275.3,3.20527]
[1625478183429,7.80174,2275.4,2275.3,2.20527]
[1625478183640,7.80174,2275.4,2275.1,2.20527]
[1625478183740,8.68564,2275.4,2275.1,2.20527]
[1625478184840,9.96196176,2275.4,2275.1,2.20527]
[1625478186446,1.27571771,2275.2,2275.1,2.20527]
[1625478186946,1.2758402,2275.3,2275.1,2.20527]
[1625478187947,1.2758402,2275.3,2275.1,1.70527]
[1625478190301,1.27445317,2275.2,2275.1,1.70527]
[1625478190402,1.27445317,2275.2,2274.7,2.20527]
[1625478190752,1.27427167,2275.1,2274.7,2.20527]
[1625478190952,4.41054,2274.8,2274.7,1.31497]
[1625478191053,8.35924,2274.8,2274.7,1.31497]
[1625478193729,8.35924,2274.8,2274.0,1.0]
[1625478194882,3.9487,2274.8,2274.0,1.0]
[1625478195384,4.41054,2274.1,2274.0,1.0]
[1625478195585,7.74814,2274.1,2274.0,1.0]
[1625478197989,3.3376,2274.1,2274.0,1.0]
[1625478199441,7.74814,2274.1,2274.0,1.0]
[1625478208076,4e-05,2274.1,2274.0,1.0]
[1625478208277,5.5477864,2275.4,2274.0,1.0]
[1625478208380,2.1565864,2275.4,2274.0,4.1703]
[1625478208881,0.8839,2275.4,2274.1,15.841151]
[1625478208979,0.8839,2275.4,2274.2,1.0]
[1625478209481,2.20527,2275.1,2274.9,2.20527]
[1625478209579,2.20527,2275.1,2275.0,1.0]
[1625478211534,4.41054,2275.1,2275.0,1.0]
[1625478213839,4.41054,2275.1,2274.9,2.20527]
[1625478220304,1.27387784,2275.4,2273.9,1.29739846]
[1625478220954,1.27522342,2275.3,2274.0,17.0447]
[1625478221364,1.27529738,2275.4,2274.0,17.0447]
[1625478221607,2.20527,2275.1,2274.9,2.20527]
[1625478223370,2.20527,2275.1,2274.9,3.20527]
[1625478223470,2.20527,2275.1,2274.9,2.20527]
[1625478223570,2.20527,2275.1,2274.9,3.20527]
[1625478223670,4.41054,2275.1,2274.9,3.20527]
[1625478223777,4.41054,2275.1,2274.9,2.20527]
[1625478224732,1.27628223,2275.4,2274.8,1.0]
[1625478225231,1.27650238,2275.3,2274.8,1.0]
[1625478225631,1.27681358,2275.4,2274.9,2.20527]
[1625478225732,2.20527,2275.1,2274.9,3.20527]
[1625478225982,2.20527,2275.1,2274.9,2.20527]
[1625478227685,4.41054,2275.1,2274.9,2.20527]
[1625478231742,4.41054,2275.1,2274.9,3.20527]
[1625478235859,2.20527,2275.1,2274.9,3.20527]
[1625478237404,1.78692397,2275.5,2274.9,3.20527]
[1625478237566,2.55274853,2275.6,2274.9,3.20527]
[1625478237664,1.27693161,2275.6,2274.9,3.20527]
[1625478237763,1.27693161,2275.6,2275.5,4.41054]
[1625478237859,1.27693161,2275.6,2275.5,8.09664]
[1625478238411,1.27693161,2275.6,2275.5,23.921027]
[1625478238872,1.78930789,2276.3,2275.5,23.921027]
[1625478239613,3.32300037,2276.6,2275.5,23.921027]
[1625478239614,1.79006052,2276.5,2275.5,23.921027]
[1625478239815,1.79006052,2276.5,2276.4,4.41054]
[1625478239913,1.79006052,2276.5,2276.4,5.41054]
[1625478240014,1.79006052,2276.5,2276.4,4.41054]
[1625478240365,1.79006052,2276.5,2276.4,5.41054]
[1625478242018,4.76249932,2276.6,2276.4,5.41054]
[1625478242019,3.99477408,2276.6,2276.4,4.41054]
[1625478242667,3.99477408,2276.6,2276.4,5.41054]
[1625478242767,1.78950408,2276.6,2276.4,5.41054]
[1625478243867,2.55643441,2276.7,2276.4,5.41054]
[1625478243868,1.78701258,2276.7,2276.4,5.41054]
[1625478245821,3.99228258,2276.7,2276.4,5.41054]
[1625478246728,2.20527,2276.7,2276.4,5.41054]
[1625478247128,2.20527,2276.7,2275.1,16.65805075]
[1625478247233,6.0,2276.6,2275.1,16.65805075]
[1625478247334,6.0,2276.6,2275.1,1.81575075]
[1625478247434,1.0,2276.6,2275.1,1.32175075]
[1625478247533,5.0,2276.5,2275.1,1.32175075]
[1625478247634,1.0,2276.4,2275.1,1.32175075]
[1625478247734,1.0,2276.4,2275.0,2.5938767]
[1625478247735,2.54776583,2275.8,2275.0,2.5938767]
[1625478247835,7.15174,2275.1,2274.8,2.20527]
[1625478247934,1.0,2275.0,2274.8,2.20527]
[1625478248133,1.0,2275.0,2274.8,7e-05]
[1625478248537,1.0,2275.0,2274.5,2.20527]
[1625478249139,1.0,2275.0,2273.6,2.59561802]
[1625478249242,1.0,2275.0,2273.5,2.59576247]
[1625478249789,4.41054,2274.0,2273.8,2.20527]
[1625478253003,2.6137,2274.1,2273.3,2.59579361]
[1625478253854,2.20527,2273.9,2273.8,2.20527]
[1625478255863,4.41054,2273.9,2273.8,2.20527]
[1625478266855,6.97764,2273.9,2273.8,2.20527]
[1625478279564,2.5671,2273.9,2273.1,2.59463545]
[1625478279666,1.0,2274.5,2273.1,2.59463545]
[1625478280118,2.20527,2273.9,2273.8,2.20527]
[1625478282068,4.41054,2273.9,2273.8,2.20527]
[1625478283174,5.41054,2273.9,2273.8,2.20527]
[1625478284127,5.41054,2273.9,2273.6,2.20527]
[1625478285986,5.41054,2273.9,2272.9,14.9015]
[1625478286188,6.92764,2273.0,2272.9,14.9015]
[1625478286386,7.92764,2273.0,2272.8,2.20527]
[1625478288449,7.92764,2273.0,2272.6,2.20527]
[1625478290163,2.20527,2272.7,2272.6,2.20527]
[1625478299685,3.20527,2273.0,2272.6,2.20527]
[1625478300287,3.20527,2273.0,2272.9,2.20527]
[1625478301992,2.20527,2273.2,2272.9,3.20527]
[1625478302093,14.8363,2274.4,2272.9,3.20527]
[1625478302293,2.20527,2274.0,2273.9,2.20527]
[1625478302393,2.20527,2274.0,2273.9,4.74197]
[1625478303047,2.20527,2274.0,2273.9,5.74197]
[1625478303601,2.20527,2274.0,2273.9,4.74197]
[1625478303906,2.20527,2274.0,2273.9,5.74197]
[1625478304555,2.20527,2274.0,2273.9,4.74197]
[1625478304753,2.20527,2274.0,2273.9,5.74197]
[1625478306564,2.20527,2274.2,2273.9,5.74197]
[1625478306913,13.7974,2275.3,2273.9,3.5367]
[1625478307113,13.7974,2275.3,2273.9,19.383303]
[1625478307868,13.7974,2275.3,2273.9,3.5367]
[1625478307963,13.7974,2275.3,2273.4,1.0]
[1625478308063,16.4207,2275.3,2273.4,1.0]
[1625478308365,2.20527,2274.7,2274.6,2.20527]
[1625478310317,4.41054,2274.7,2274.6,2.20527]
[1625478320788,8.82864,2274.7,2273.0,2.58900965]
[1625478320888,8.82864,2274.7,2273.2,1.0]
[1625478321088,8.82864,2274.7,2273.0,2.58900965]
[1625478321192,8.82864,2274.7,2272.7,19.0399]
[1625478321290,8.82864,2274.7,2272.7,14.2809]
[1625478321841,8.82864,2274.7,2272.8,16.08044]
[1625478321941,8.82864,2274.7,2273.1,1.0]
[1625478322443,2.20527,2273.5,2273.4,2.20527]
[1625478322956,2.20527,2273.5,2273.4,3.20527]
[1625478324018,2.20527,2273.5,2273.4,2.20527]
[1625478324118,2.20527,2273.5,2273.4,3.20527]
[1625478324419,4.41054,2273.5,2273.4,3.20527]
[1625478331316,4.41054,2273.5,2273.4,2.20527]
[1625478332624,4.41054,2273.5,2273.4,3.20527]
[1625478333073,4.41054,2273.5,2273.4,2.20527]
[1625478339793,4.41054,2273.5,2273.2,3.20527]
[1625478340093,4.41054,2273.5,2273.2,2.20527]
[1625478343702,4.41054,2273.5,2272.8,1.0]
[1625478344657,4.41054,2272.9,2272.8,1.0]
[1625478349339,4.41054,2272.9,2272.7,2.20527]
[1625478352491,4.41054,2272.9,2272.6,1.0]
[1625478352591,4.41054,2272.9,2272.5,2.20527]
[1625478352692,2.20527,2272.6,2272.5,2.20527]
[1625478352792,5.58007,2272.6,2272.5,2.20527]
[1625478353792,6.46977,2272.6,2272.5,2.20527]
[1625478354095,6.46977,2272.6,2272.2,1.0]
[1625478354546,6.46977,2272.6,2271.6,2.59798066]
[1625478354745,4.2645,2272.6,2271.7,1.0]
[1625478354847,4.2645,2272.6,2271.6,4.80325066]
[1625478355245,4.2645,2272.6,2271.6,2.20527]
[1625478355794,4.2645,2272.6,2271.7,1.0]
[1625478356695,4.41054,2271.8,2271.7,1.0]
[1625478360559,4.41054,2271.8,2271.6,2.20527]
[1625478360660,4.41054,2271.8,2271.7,1.0]
[1625478362522,4.41054,2271.8,2271.6,2.20527]
[1625478362624,4.41054,2271.8,2271.7,1.0]
[1625478362871,4.41054,2271.8,2271.6,2.20527]
[1625478363674,4.41054,2271.8,2271.7,1.0]
[1625478365428,2.278,2273.1,2271.7,1.0]
[1625478365526,0.8786,2273.4,2271.7,1.0]
[1625478365627,19.94199425,2273.7,2271.7,1.0]
[1625478365728,19.94199425,2273.7,2271.7,17.0204]
[1625478366027,17.3963,2273.7,2271.7,17.0204]
[1625478366180,17.3963,2273.7,2271.7,19.3822]
[1625478366778,2.20527,2272.4,2272.3,2.20527]
[1625478366883,1.20527,2272.4,2272.3,2.20527]
[1625478367080,1.20527,2272.4,2272.3,18.244296]
[1625478367881,0.8909,2273.3,2272.3,18.244296]
[1625478367979,14.0289,2273.7,2272.3,21.364396]
[1625478368734,1.0,2273.6,2272.3,21.364396]
[1625478368837,2.20527,2272.8,2272.7,2.20527]
[1625478368936,3.20527,2272.8,2272.7,2.20527]
[1625478370791,5.41054,2272.8,2272.7,2.20527]
[1625478374353,5.41054,2272.8,2272.3,2.20527]
[1625478374754,5.41054,2272.8,2271.3,4.759]
[1625478374855,2.20527,2271.8,2271.5,2.20527]
[1625478374953,4.85137,2271.8,2271.5,2.20527]
[1625478377556,6.72817,2271.8,2271.5,2.20527]
[1625478377660,5.85137,2271.8,2271.5,2.20527]
[1625478397364,3.6461,2271.8,2270.9,14.5099]
[1625478397665,3.6461,2271.8,2270.4,14.8626]
[1625478398064,3.6461,2271.8,2271.0,15.98609]
[1625478398265,3.6461,2271.8,2270.5,15.91734]